[Event "*** Titled Tuesday Blitz"]
[Site "Chess.com"]
[Date "2020.05.12"]
[Round "9"]
[White "spela91"]
[Black "Azoulas1"]
[Result "0-1"]
[WhiteElo "2069"]
[BlackElo "1934"]
[TimeControl "180+1"]
[EndTime "11:43:21 PDT"]
[Termination "Azoulas1 won on time"]

1. d4 {[%clk 0:03:00.9]} 1... Nf6 {[%clk 0:02:57.9]} 2. c4 {[%clk 0:03:00.9]}
2... c5 {[%clk 0:02:57]} 3. Nf3 {[%clk 0:03:00.3]} 3... cxd4 {[%clk 0:02:54.9]}
4. Nxd4 {[%clk 0:03:00.5]} 4... Nc6 {[%clk 0:02:54.6]} 5. Nc3 {[%clk 0:02:58.5]}
5... e6 {[%clk 0:02:54]} 6. a3 {[%clk 0:02:53.5]} 6... Be7 {[%clk 0:02:48.9]} 7.
g3 {[%clk 0:02:51.7]} 7... O-O {[%clk 0:02:48.1]} 8. Bg2 {[%clk 0:02:51.9]} 8...
a6 {[%clk 0:02:45.8]} 9. O-O {[%clk 0:02:47.9]} 9... Qc7 {[%clk 0:02:45.3]} 10.
Nxc6 {[%clk 0:02:38.2]} 10... bxc6 {[%clk 0:02:40.9]} 11. e4 {[%clk 0:02:29.4]}
11... Bb7 {[%clk 0:02:38.4]} 12. Qe2 {[%clk 0:01:57.8]} 12... Rad8 {[%clk
0:02:35]} 13. Rd1 {[%clk 0:01:51.8]} 13... Bc5 {[%clk 0:02:20.7]} 14. e5 {[%clk
0:01:39.6]} 14... Ne8 {[%clk 0:02:11.9]} 15. b4 {[%clk 0:01:39.5]} 15... Be7
{[%clk 0:02:09.6]} 16. c5 {[%clk 0:01:34]} 16... f6 {[%clk 0:02:04.3]} 17. f4
{[%clk 0:01:28.9]} 17... Ra8 {[%clk 0:01:53.3]} 18. Bb2 {[%clk 0:01:13.3]} 18...
a5 {[%clk 0:01:48.2]} 19. Ne4 {[%clk 0:01:03.8]} 19... Ba6 {[%clk 0:01:44.8]}
20. Qd2 {[%clk 0:00:51]} 20... f5 {[%clk 0:01:33.4]} 21. Qxd7 {[%clk 0:00:36.8]}
21... fxe4 {[%clk 0:01:24.6]} 22. Qxc7 {[%clk 0:00:35]} 22... Nxc7 {[%clk
0:01:24.3]} 23. Rd7 {[%clk 0:00:34.7]} 23... Nd5 {[%clk 0:01:11.4]} 24. Bxe4
{[%clk 0:00:27.9]} 24... Bc8 {[%clk 0:01:08]} 25. Rd6 {[%clk 0:00:08.7]} 25...
Bxd6 {[%clk 0:01:06.6]} 26. cxd6 {[%clk 0:00:08.3]} 26... axb4 {[%clk
0:01:06.1]} 27. a4 {[%clk 0:00:06.8]} 27... Bd7 {[%clk 0:01:04.1]} 28. Bd4
{[%clk 0:00:04.1]} 28... Nc3 {[%clk 0:00:57.1]} 29. Bf3 {[%clk 0:00:01.8]} 29...
Rfb8 {[%clk 0:00:48.3]} 30. Rc1 {[%clk 0:00:01.8]} 30... Rxa4 {[%clk 0:00:46]}
31. Bxc3 {[%clk 0:00:01.4]} 31... bxc3 {[%clk 0:00:45.3]} 32. Rxc3 {[%clk
0:00:02.3]} 32... Ra1+ {[%clk 0:00:44.5]} 33. Kg2 {[%clk 0:00:02.9]} 33... Rb2+
{[%clk 0:00:43.8]} 34. Kh3 {[%clk 0:00:03.3]} 34... Ra6 {[%clk 0:00:40.1]} 35.
Bxc6 {[%clk 0:00:01]} 35... Rxc6 {[%clk 0:00:38.5]} 36. Rxc6 {[%clk 0:00:01.3]}
36... Bxc6 {[%clk 0:00:38.6]} 37. d7 {[%clk 0:00:01.8]} 37... Bxd7 {[%clk
0:00:38.8]} 38. f5 {[%clk 0:00:02.2]} 38... exf5 {[%clk 0:00:37.7]} 39. e6
{[%clk 0:00:02.4]} 39... Bxe6 {[%clk 0:00:36.2]} 40. g4 {[%clk 0:00:02.5]} 40...
fxg4+ {[%clk 0:00:35.9]} 41. Kh4 {[%clk 0:00:02.5]} 41... Rxh2+ {[%clk
0:00:33.2]} 42. Kg3 {[%clk 0:00:02.3]} 42... Rh3+ {[%clk 0:00:33.1]} 43. Kg2
{[%clk 0:00:02.4]} 43... g3 {[%clk 0:00:33]} 44. Kg1 {[%clk 0:00:01.7]} 44...
Rh2 {[%clk 0:00:31.2]} 45. Kf1 {[%clk 0:00:01.6]} 45... Ra2 {[%clk 0:00:31.4]}
0-1

[Event "*** Titled Tuesday Blitz"]
[Site "Chess.com"]
[Date "2020.05.12"]
[Round "9"]
[White "XDPS"]
[Black "Skatchkov_V"]
[Result "1-0"]
[WhiteElo "2684"]
[BlackElo "2552"]
[TimeControl "180+1"]
[EndTime "11:43:23 PDT"]
[Termination "XDPS won by resignation"]

1. d4 {[%clk 0:03:00.9]} 1... Nf6 {[%clk 0:02:59.7]} 2. Bf4 {[%clk 0:03:00.3]}
2... e6 {[%clk 0:02:59.6]} 3. e3 {[%clk 0:03:00]} 3... d5 {[%clk 0:03:00.1]} 4.
Nf3 {[%clk 0:03:00.3]} 4... Bd6 {[%clk 0:02:58.1]} 5. Nbd2 {[%clk 0:03:00.7]}
5... c5 {[%clk 0:02:57.9]} 6. c3 {[%clk 0:03:00]} 6... Nc6 {[%clk 0:02:56.6]} 7.
Bg3 {[%clk 0:02:59.9]} 7... O-O {[%clk 0:02:56.5]} 8. Bb5 {[%clk 0:03:00.4]}
8... Qc7 {[%clk 0:02:34]} 9. dxc5 {[%clk 0:02:58.2]} 9... Bxg3 {[%clk
0:02:31.1]} 10. hxg3 {[%clk 0:02:58.5]} 10... Ne7 {[%clk 0:02:26.2]} 11. b4
{[%clk 0:02:58.2]} 11... b6 {[%clk 0:02:25.2]} 12. cxb6 {[%clk 0:02:44.8]} 12...
Qxc3 {[%clk 0:02:24.9]} 13. bxa7 {[%clk 0:02:37.7]} 13... Qxb4 {[%clk
0:02:24.8]} 14. a4 {[%clk 0:02:37.5]} 14... Rxa7 {[%clk 0:02:18.6]} 15. O-O
{[%clk 0:02:37.2]} 15... Ba6 {[%clk 0:02:18.2]} 16. Rb1 {[%clk 0:02:36.3]} 16...
Qd6 {[%clk 0:02:00.2]} 17. Nc4 {[%clk 0:02:29.6]} 17... Qc5 {[%clk 0:01:25.5]}
18. Nce5 {[%clk 0:02:24.3]} 18... Bxb5 {[%clk 0:01:25.7]} 19. axb5 {[%clk
0:02:24]} 19... Rb8 {[%clk 0:01:25.4]} 20. Qd4 {[%clk 0:02:10.3]} 20... Rc7
{[%clk 0:01:04.5]} 21. b6 {[%clk 0:01:18.3]} 21... Qxd4 {[%clk 0:00:59]} 22.
bxc7 {[%clk 0:01:16.4]} 22... Rxb1 {[%clk 0:00:58.9]} 23. Nxd4 {[%clk
0:00:48.9]} 23... Rxf1+ {[%clk 0:00:51.3]} 24. Kxf1 {[%clk 0:00:49.8]} 24... Ne8
{[%clk 0:00:52.1]} 25. Nec6 {[%clk 0:00:46.1]} 25... Nc8 {[%clk 0:00:51.4]} 26.
Nb5 {[%clk 0:00:46.4]} 26... Kf8 {[%clk 0:00:48]} 27. f4 {[%clk 0:00:44.3]}
27... f5 {[%clk 0:00:37.2]} 28. Kf2 {[%clk 0:00:31.5]} 28... h6 {[%clk
0:00:16.9]} 29. Ke2 {[%clk 0:00:30.6]} 29... g5 {[%clk 0:00:17.2]} 30. Kd3
{[%clk 0:00:29.5]} 30... Kf7 {[%clk 0:00:15.5]} 31. Kd4 {[%clk 0:00:26.1]} 31...
Ned6 {[%clk 0:00:15.3]} 32. Nxd6+ {[%clk 0:00:20]} 32... Nxd6 {[%clk 0:00:15.7]}
33. Kc5 {[%clk 0:00:18.4]} 33... Nc8 {[%clk 0:00:16]} 34. Nd8+ {[%clk
0:00:11.5]} 34... Ke7 {[%clk 0:00:16.1]} 35. Kc6 {[%clk 0:00:11.9]} 35... h5
{[%clk 0:00:15.5]} 36. Kb7 {[%clk 0:00:10.6]} 36... Kd7 {[%clk 0:00:15.2]} 37.
Nf7 {[%clk 0:00:11.1]} 37... Nd6+ {[%clk 0:00:14.2]} 38. Nxd6 {[%clk 0:00:10.9]}
1-0

[Event "*** Titled Tuesday Blitz"]
[Site "Chess.com"]
[Date "2020.05.12"]
[Round "9"]
[White "PavlovDanila"]
[Black "tsvet2005"]
[Result "1-0"]
[WhiteElo "2686"]
[BlackElo "2489"]
[TimeControl "180+1"]
[EndTime "11:43:26 PDT"]
[Termination "PavlovDanila won by resignation"]

1. e4 {[%clk 0:03:00.9]} 1... c5 {[%clk 0:02:59.2]} 2. Nf3 {[%clk 0:03:00.4]}
2... d6 {[%clk 0:02:59.8]} 3. d4 {[%clk 0:03:00.8]} 3... cxd4 {[%clk 0:03:00.7]}
4. Nxd4 {[%clk 0:03:01.4]} 4... Nf6 {[%clk 0:03:01.6]} 5. Nc3 {[%clk 0:03:01.9]}
5... a6 {[%clk 0:03:02.3]} 6. Be3 {[%clk 0:03:01.6]} 6... e5 {[%clk 0:03:02.3]}
7. Nb3 {[%clk 0:03:01.9]} 7... Be6 {[%clk 0:03:02.6]} 8. Qd2 {[%clk 0:03:01.9]}
8... Be7 {[%clk 0:03:01.3]} 9. O-O-O {[%clk 0:03:02.1]} 9... Nbd7 {[%clk
0:03:01.2]} 10. f4 {[%clk 0:03:01.8]} 10... b5 {[%clk 0:02:59.1]} 11. f5 {[%clk
0:03:00.9]} 11... Bc4 {[%clk 0:02:57.4]} 12. g4 {[%clk 0:03:01.1]} 12... Nxg4
{[%clk 0:02:56.3]} 13. Rg1 {[%clk 0:03:01.2]} 13... Ndf6 {[%clk 0:02:53.7]} 14.
Bg5 {[%clk 0:02:10.5]} 14... h6 {[%clk 0:02:47.5]} 15. Bh4 {[%clk 0:02:05.4]}
15... Bxf1 {[%clk 0:02:24.8]} 16. Rdxf1 {[%clk 0:02:02.2]} 16... b4 {[%clk
0:02:25.3]} 17. Na4 {[%clk 0:01:44.9]} 17... Nxe4 {[%clk 0:02:15.2]} 18. Qxb4
{[%clk 0:01:24.9]} 18... Bxh4 {[%clk 0:01:26.9]} 19. Qxe4 {[%clk 0:01:13.6]}
19... Bg5+ {[%clk 0:01:26.7]} 20. Kb1 {[%clk 0:01:13.3]} 20... Nf6 {[%clk
0:01:27.3]} 21. Qc6+ {[%clk 0:01:13.3]} 21... Kf8 {[%clk 0:01:27.9]} 22. Rd1
{[%clk 0:01:02]} 22... Ne8 {[%clk 0:01:11.8]} 23. Nb6 {[%clk 0:00:57.1]} 23...
Ra7 {[%clk 0:01:06.7]} 24. Nc4 {[%clk 0:00:52.6]} 24... Rc7 {[%clk 0:01:03.7]}
25. Qxa6 {[%clk 0:00:51.9]} 25... Be7 {[%clk 0:00:59.9]} 26. Nxe5 {[%clk
0:00:48.3]} 26... d5 {[%clk 0:00:44.5]} 27. Qa5 {[%clk 0:00:24.1]} 27... Bf6
{[%clk 0:00:37.1]} 28. Rxd5 {[%clk 0:00:21.7]} 28... Qc8 {[%clk 0:00:37.3]} 29.
c3 {[%clk 0:00:10.3]} 29... Qxf5+ {[%clk 0:00:31.1]} 30. Ka1 {[%clk 0:00:10.1]}
30... Qe6 {[%clk 0:00:30.9]} 31. Nd4 {[%clk 0:00:09.7]} 31... Qc8 {[%clk
0:00:27.7]} 32. Rd1 {[%clk 0:00:08.5]} 32... Kg8 {[%clk 0:00:24.6]} 33. Nb5
{[%clk 0:00:05.7]} 33... Rb7 {[%clk 0:00:21.6]} 34. Nd6 {[%clk 0:00:04]} 34...
Nxd6 {[%clk 0:00:21.8]} 35. Rxd6 {[%clk 0:00:04.9]} 35... Kh7 {[%clk 0:00:22.7]}
36. Nd7 {[%clk 0:00:04.4]} 36... Be7 {[%clk 0:00:17]} 37. Qf5+ {[%clk
0:00:04.5]} 37... Kg8 {[%clk 0:00:17.5]} 38. Nf6+ {[%clk 0:00:04.7]} 38... gxf6
{[%clk 0:00:14.6]} 39. Qxc8+ {[%clk 0:00:05.2]} 39... Kg7 {[%clk 0:00:15.5]} 40.
Qxb7 {[%clk 0:00:05.5]} 40... Bxd6 {[%clk 0:00:14.8]} 41. Rxd6 {[%clk
0:00:06.4]} 41... Rd8 {[%clk 0:00:15.5]} 42. Rxd8 {[%clk 0:00:06.2]} 1-0

[Event "*** Titled Tuesday Blitz"]
[Site "Chess.com"]
[Date "2020.05.12"]
[Round "9"]
[White "dolynachess"]
[Black "Konovalova_Vera"]
[Result "0-1"]
[WhiteElo "2328"]
[BlackElo "2118"]
[TimeControl "180+1"]
[EndTime "11:43:27 PDT"]
[Termination "Konovalova_Vera won on time"]

1. d4 {[%clk 0:02:58.6]} 1... Nf6 {[%clk 0:02:56.6]} 2. c4 {[%clk 0:02:54.6]}
2... e6 {[%clk 0:02:55.3]} 3. g3 {[%clk 0:02:47.8]} 3... Bb4+ {[%clk 0:02:53.9]}
4. Nd2 {[%clk 0:02:43.9]} 4... d5 {[%clk 0:02:50.2]} 5. Bg2 {[%clk 0:02:41.3]}
5... O-O {[%clk 0:02:48.6]} 6. Nf3 {[%clk 0:02:39]} 6... c5 {[%clk 0:02:47.8]}
7. a3 {[%clk 0:02:26]} 7... Bxd2+ {[%clk 0:02:41.4]} 8. Qxd2 {[%clk 0:02:24]}
8... Ne4 {[%clk 0:02:37]} 9. Qc2 {[%clk 0:02:21.9]} 9... cxd4 {[%clk 0:02:18.4]}
10. Nxd4 {[%clk 0:02:05.9]} 10... f5 {[%clk 0:02:08.1]} 11. O-O {[%clk
0:02:02.2]} 11... Nc6 {[%clk 0:02:04]} 12. Rd1 {[%clk 0:01:48.1]} 12... Qf6
{[%clk 0:01:37.7]} 13. Be3 {[%clk 0:01:23.1]} 13... Bd7 {[%clk 0:01:13.4]} 14.
cxd5 {[%clk 0:01:19.9]} 14... exd5 {[%clk 0:01:12.2]} 15. Qb3 {[%clk 0:01:15.1]}
15... Qf7 {[%clk 0:00:58.7]} 16. Rac1 {[%clk 0:01:02.4]} 16... Na5 {[%clk
0:00:32.5]} 17. Qb4 {[%clk 0:00:55.9]} 17... Nc4 {[%clk 0:00:28.4]} 18. Bf4
{[%clk 0:00:30.1]} 18... b6 {[%clk 0:00:21.7]} 19. Nf3 {[%clk 0:00:18.1]} 19...
Rac8 {[%clk 0:00:19.1]} 20. Ne5 {[%clk 0:00:15.7]} 20... Nxe5 {[%clk 0:00:19]}
21. Bxe5 {[%clk 0:00:16.6]} 21... Be6 {[%clk 0:00:18.3]} 22. Bd4 {[%clk
0:00:15.7]} 22... Qg6 {[%clk 0:00:17.2]} 23. Qe7 {[%clk 0:00:12.9]} 23... Rfe8
{[%clk 0:00:12.9]} 24. Qxa7 {[%clk 0:00:12.5]} 24... Qg5 {[%clk 0:00:11.6]} 25.
e3 {[%clk 0:00:09.1]} 25... Qg6 {[%clk 0:00:10.2]} 26. Qxb6 {[%clk 0:00:07.3]}
26... Qf7 {[%clk 0:00:09.1]} 27. h4 {[%clk 0:00:06.2]} 27... Qd7 {[%clk
0:00:08.4]} 28. Bf3 {[%clk 0:00:03.2]} 28... Nd6 {[%clk 0:00:06.4]} 29. Qb4
{[%clk 0:00:02.3]} 29... Nc4 {[%clk 0:00:05.7]} 30. b3 {[%clk 0:00:01.2]} 30...
Nd6 {[%clk 0:00:04.7]} 0-1

[Event "*** Titled Tuesday Blitz"]
[Site "Chess.com"]
[Date "2020.05.12"]
[Round "9"]
[White "anon102030"]
[Black "etesungam"]
[Result "1-0"]
[WhiteElo "2752"]
[BlackElo "2468"]
[TimeControl "180+1"]
[EndTime "11:43:28 PDT"]
[Termination "anon102030 won on time"]

1. e4 {[%clk 0:03:00.9]} 1... e5 {[%clk 0:02:57.2]} 2. Nf3 {[%clk 0:02:59.5]}
2... Nc6 {[%clk 0:02:56.7]} 3. Bc4 {[%clk 0:02:59.5]} 3... Bc5 {[%clk
0:02:54.2]} 4. c3 {[%clk 0:02:59.3]} 4... Nf6 {[%clk 0:02:49.4]} 5. d4 {[%clk
0:02:57.8]} 5... exd4 {[%clk 0:02:47.6]} 6. cxd4 {[%clk 0:02:58.7]} 6... Bb4+
{[%clk 0:02:47.7]} 7. Bd2 {[%clk 0:02:58.7]} 7... Bxd2+ {[%clk 0:02:25.8]} 8.
Nbxd2 {[%clk 0:02:59.6]} 8... d5 {[%clk 0:02:13.6]} 9. exd5 {[%clk 0:03:00.5]}
9... Nxd5 {[%clk 0:02:04.2]} 10. O-O {[%clk 0:02:56.1]} 10... O-O {[%clk
0:02:03.6]} 11. Re1 {[%clk 0:02:46.5]} 11... Bg4 {[%clk 0:02:02]} 12. h3 {[%clk
0:02:31.9]} 12... Bxf3 {[%clk 0:01:57.9]} 13. Nxf3 {[%clk 0:02:30.7]} 13... Nce7
{[%clk 0:01:52.3]} 14. Rc1 {[%clk 0:02:27.5]} 14... c6 {[%clk 0:01:52.4]} 15.
Qb3 {[%clk 0:02:17.1]} 15... Qb6 {[%clk 0:01:51.5]} 16. Re2 {[%clk 0:02:10.1]}
16... Qxb3 {[%clk 0:01:49.6]} 17. Bxb3 {[%clk 0:02:11]} 17... Rfd8 {[%clk
0:01:38.8]} 18. g3 {[%clk 0:02:08.7]} 18... Kf8 {[%clk 0:01:35]} 19. a4 {[%clk
0:01:54.1]} 19... f6 {[%clk 0:01:34.9]} 20. a5 {[%clk 0:01:50.4]} 20... a6
{[%clk 0:01:34.8]} 21. Rce1 {[%clk 0:01:39.5]} 21... Rd7 {[%clk 0:01:34.7]} 22.
Bc2 {[%clk 0:01:37.6]} 22... Rad8 {[%clk 0:01:30.5]} 23. Nd2 {[%clk 0:01:30.2]}
23... g6 {[%clk 0:01:18.3]} 24. Ne4 {[%clk 0:01:22.8]} 24... Nf5 {[%clk
0:01:02]} 25. Nc5 {[%clk 0:01:18.7]} 25... Nxd4 {[%clk 0:00:56.1]} 26. Nxd7+
{[%clk 0:01:11.7]} 26... Rxd7 {[%clk 0:00:56.5]} 27. Re8+ {[%clk 0:01:11.2]}
27... Kf7 {[%clk 0:00:54.3]} 28. Bd1 {[%clk 0:01:12.1]} 28... h5 {[%clk
0:00:49.3]} 29. Kg2 {[%clk 0:01:06.8]} 29... h4 {[%clk 0:00:49.1]} 30. Rh8
{[%clk 0:01:02]} 30... Kg7 {[%clk 0:00:48.3]} 31. Rxh4 {[%clk 0:01:01.5]} 31...
Nb4 {[%clk 0:00:45.8]} 32. Rhe4 {[%clk 0:00:51.6]} 32... Kf7 {[%clk 0:00:37.8]}
33. Be2 {[%clk 0:00:49]} 33... f5 {[%clk 0:00:34.7]} 34. Bc4+ {[%clk 0:00:47.3]}
34... Kf6 {[%clk 0:00:35]} 35. Re8 {[%clk 0:00:43.1]} 35... f4 {[%clk 0:00:32]}
36. g4 {[%clk 0:00:37.8]} 36... f3+ {[%clk 0:00:29.8]} 37. Kg3 {[%clk 0:00:38]}
37... Nbc2 {[%clk 0:00:29.4]} 38. Rf8+ {[%clk 0:00:33.5]} 38... Kg7 {[%clk
0:00:27.1]} 39. Ree8 {[%clk 0:00:34.1]} 39... c5 {[%clk 0:00:20.7]} 40. g5
{[%clk 0:00:34]} 40... Nf5+ {[%clk 0:00:18.7]} 41. Kxf3 {[%clk 0:00:32]} 41...
Ncd4+ {[%clk 0:00:18.5]} 42. Kg2 {[%clk 0:00:26.2]} 42... Nh4+ {[%clk
0:00:11.4]} 43. Kf1 {[%clk 0:00:25.1]} 1-0

[Event "*** Titled Tuesday Blitz"]
[Site "Chess.com"]
[Date "2020.05.12"]
[Round "9"]
[White "agrigo3"]
[Black "HouseOfDurin"]
[Result "1-0"]
[WhiteElo "2286"]
[BlackElo "2026"]
[TimeControl "180+1"]
[EndTime "11:43:28 PDT"]
[Termination "agrigo3 won on time"]

1. Nf3 {[%clk 0:03:00.9]} 1... c5 {[%clk 0:03:00.3]} 2. g3 {[%clk 0:03:00.9]}
2... Nc6 {[%clk 0:03:00.8]} 3. Bg2 {[%clk 0:03:01.5]} 3... g6 {[%clk 0:03:01.1]}
4. O-O {[%clk 0:03:01.9]} 4... Bg7 {[%clk 0:03:01.6]} 5. d3 {[%clk 0:02:57.1]}
5... e5 {[%clk 0:03:01.9]} 6. e4 {[%clk 0:02:56.8]} 6... Nge7 {[%clk 0:03:00.2]}
7. c3 {[%clk 0:02:55.5]} 7... h6 {[%clk 0:02:54.3]} 8. a3 {[%clk 0:02:55.6]}
8... a5 {[%clk 0:02:53.1]} 9. a4 {[%clk 0:02:55.5]} 9... O-O {[%clk 0:02:51.1]}
10. Na3 {[%clk 0:02:55.9]} 10... d5 {[%clk 0:02:47.3]} 11. Qc2 {[%clk 0:02:46]}
11... d4 {[%clk 0:02:09.1]} 12. Nc4 {[%clk 0:02:43.1]} 12... Be6 {[%clk
0:01:59.1]} 13. Nfd2 {[%clk 0:02:35.8]} 13... Rb8 {[%clk 0:01:12]} 14. f4 {[%clk
0:02:30.2]} 14... f5 {[%clk 0:01:06.1]} 15. exf5 {[%clk 0:01:49.2]} 15... gxf5
{[%clk 0:01:07]} 16. fxe5 {[%clk 0:01:48.6]} 16... Nxe5 {[%clk 0:01:06.3]} 17.
Nxe5 {[%clk 0:01:45.3]} 17... Bxe5 {[%clk 0:01:07.2]} 18. Nf3 {[%clk 0:01:42.7]}
18... Bg7 {[%clk 0:01:01.4]} 19. c4 {[%clk 0:01:36.7]} 19... Ng6 {[%clk
0:00:51.1]} 20. Bd2 {[%clk 0:01:30.3]} 20... Bd7 {[%clk 0:00:45.6]} 21. Rae1
{[%clk 0:01:26.1]} 21... Bc6 {[%clk 0:00:40.6]} 22. Re2 {[%clk 0:01:13.7]} 22...
Qd7 {[%clk 0:00:37.3]} 23. Bxa5 {[%clk 0:00:54.8]} 23... b6 {[%clk 0:00:37.1]}
24. Bd2 {[%clk 0:00:51.6]} 24... Bxa4 {[%clk 0:00:37.5]} 25. Qc1 {[%clk
0:00:48.9]} 25... Kh7 {[%clk 0:00:35.8]} 26. Bf4 {[%clk 0:00:43.8]} 26... Rbe8
{[%clk 0:00:29.3]} 27. Rfe1 {[%clk 0:00:43.1]} 27... Bc6 {[%clk 0:00:20.6]} 28.
Rxe8 {[%clk 0:00:36]} 28... Rxe8 {[%clk 0:00:21.5]} 29. Rxe8 {[%clk 0:00:35.4]}
29... Qxe8 {[%clk 0:00:22.4]} 30. Kf2 {[%clk 0:00:30]} 30... Qa8 {[%clk
0:00:16.1]} 31. Qe1 {[%clk 0:00:27.5]} 31... Qa2 {[%clk 0:00:14.6]} 32. Qe2
{[%clk 0:00:26.3]} 32... Nxf4 {[%clk 0:00:14.1]} 33. gxf4 {[%clk 0:00:25.4]}
33... Qb1 {[%clk 0:00:13.5]} 34. Bh3 {[%clk 0:00:23.1]} 34... Bd7 {[%clk
0:00:10.7]} 35. Nh4 {[%clk 0:00:17.2]} 35... Qc1 {[%clk 0:00:09.3]} 36. Kg3
{[%clk 0:00:13.6]} 36... Qg1+ {[%clk 0:00:07.5]} 37. Bg2 {[%clk 0:00:12.6]}
37... Bf6 {[%clk 0:00:05]} 38. Nf3 {[%clk 0:00:11.9]} 38... Qc1 {[%clk 0:00:04]}
39. Ne5 {[%clk 0:00:11.1]} 39... Bxe5 {[%clk 0:00:03]} 40. Qxe5 {[%clk
0:00:10.8]} 1-0

[Event "*** Titled Tuesday Blitz"]
[Site "Chess.com"]
[Date "2020.05.12"]
[Round "9"]
[White "mfwagnerpeixoto"]
[Black "Gandrade2"]
[Result "1-0"]
[WhiteElo "2236"]
[BlackElo "2051"]
[TimeControl "180+1"]
[EndTime "11:43:28 PDT"]
[Termination "mfwagnerpeixoto won on time"]

1. e4 {[%clk 0:03:00.9]} 1... c5 {[%clk 0:02:57.7]} 2. Nf3 {[%clk 0:02:59.8]}
2... g6 {[%clk 0:02:58]} 3. c3 {[%clk 0:02:53.4]} 3... d5 {[%clk 0:02:57.2]} 4.
exd5 {[%clk 0:02:52.3]} 4... Qxd5 {[%clk 0:02:57.7]} 5. d4 {[%clk 0:02:51.5]}
5... Bg7 {[%clk 0:02:57.2]} 6. Na3 {[%clk 0:02:48.5]} 6... cxd4 {[%clk
0:02:56.5]} 7. Nb5 {[%clk 0:02:47]} 7... Qd8 {[%clk 0:02:55.8]} 8. Nbxd4 {[%clk
0:02:42.3]} 8... Nf6 {[%clk 0:02:54.7]} 9. h3 {[%clk 0:02:33.7]} 9... O-O {[%clk
0:02:53.8]} 10. Be2 {[%clk 0:02:33.5]} 10... Qc7 {[%clk 0:02:39.5]} 11. Nb5
{[%clk 0:02:18.2]} 11... Qc6 {[%clk 0:02:20.9]} 12. Nfd4 {[%clk 0:02:05]} 12...
Qd7 {[%clk 0:02:07.3]} 13. Nb3 {[%clk 0:01:56.4]} 13... Qc6 {[%clk 0:01:55.8]}
14. Na5 {[%clk 0:01:40]} 14... Qxg2 {[%clk 0:01:51.3]} 15. Bf3 {[%clk
0:01:34.3]} 15... Qxh1+ {[%clk 0:01:32.6]} 16. Bxh1 {[%clk 0:01:33.3]} 16... Na6
{[%clk 0:01:21.5]} 17. Be3 {[%clk 0:01:13.5]} 17... Bf5 {[%clk 0:00:30.6]} 18.
Bxb7 {[%clk 0:01:05.9]} 18... Rad8 {[%clk 0:00:29.9]} 19. Bxa6 {[%clk
0:01:04.2]} 19... Rxd1+ {[%clk 0:00:29]} 20. Rxd1 {[%clk 0:01:05.1]} 20... Rb8
{[%clk 0:00:24.6]} 21. Bxa7 {[%clk 0:00:59.2]} 21... Ra8 {[%clk 0:00:21.2]} 22.
Nc6 {[%clk 0:00:45.2]} 22... Bf8 {[%clk 0:00:11.2]} 23. Bb7 {[%clk 0:00:28.7]}
23... Re8 {[%clk 0:00:09.7]} 24. Nc7 {[%clk 0:00:25.5]} 24... Bd7 {[%clk
0:00:03.2]} 25. Rxd7 {[%clk 0:00:17.9]} 25... Nxd7 {[%clk 0:00:02.7]} 26. Nxe8
{[%clk 0:00:17.8]} 26... Bh6 {[%clk 0:00:03.3]} 27. Be3 {[%clk 0:00:14.6]} 27...
Kf8 {[%clk 0:00:03]} 28. Bxh6+ {[%clk 0:00:13.3]} 28... Kxe8 {[%clk 0:00:03.5]}
29. Nb4 {[%clk 0:00:12.1]} 29... Nc5 {[%clk 0:00:03.6]} 30. Bc6+ {[%clk
0:00:12.3]} 30... Kd8 {[%clk 0:00:04.1]} 31. Be3 {[%clk 0:00:12.5]} 31... Kc7
{[%clk 0:00:04.4]} 32. Bxc5 {[%clk 0:00:12.2]} 1-0